Cogmind - Beta 13 @@@ ROGUE MODE // 2024.07.20 @ 22:17:27 Player: ioi Result: Destroyed by as-94058 with Assembled Blade Performance ------------- Evolutions (0) 0 Regions Visited (2) 400 Robots Destroyed (6) 30 Value Destroyed (69) 69 Prototype IDs (0) 0 Alien Tech Used (0) 0 Bonus (0) 0 TOTAL SCORE: 499 Bonus ------- None Cogmind --------- Core Integrity 0/250 Matter 163/300 Energy 35/100 System Corruption 6% Temperature Cool (0) Movement Treading (160) Location -10/Mines Parts ------- > --- POWER (1) -------- (None) > --- PROPULSION (2) --- Light Treads Light Treads > --- UTILITY (2) ------ Small Storage Unit > --- WEAPON (2) ------- Small Laser > --- INVENTORY (8) ---- Light Ion Engine Wheel Targeting Computer Light Assault Rifle Datajack Mining Laser Peak State ------------ > --- POWER ------------ Light Ion Engine > --- PROPULSION ------- Light Treads Wheel > --- UTILITY ---------- Small Storage Unit Targeting Computer > --- WEAPON ----------- Small Laser Mining Laser > --- INVENTORY -------- Light Ion Engine Light Treads Bomb Drone Bay Light Assault Rifle Light Assault Rifle Grenade Launcher Datajack [Rating: 9] Favorites ----------- Power Light Ion Engine Engine Light Ion Engine Propulsion Wheel Treads Light Treads Leg Aluminum Leg Wheel Wheel Utility Small Storage Unit Storage Small Storage Unit Processor Targeting Computer Weapon Small Laser Energy Gun Small Laser Ballistic Gun Light Assault Rifle Launcher Grenade Launcher Special Weapon Mining Laser Build | -11 -10 -10 ------- Run | Yrd Mat Min Slots Evolved . | . . . Power . | . . . Propulsion . | . . . Utility . | . . . Weapon . | . . . Parts Attached 17 | 8 2 7 Power 2 | 1 . 1 Engine 2 | 1 . 1 Core . | . . . Reactor . | . . . Propulsion 8 | 4 . 4 Treads 4 | 1 . 3 Leg 1 | 1 . . Wheel 3 | 2 . 1 Hover . | . . . Flight . | . . . Utility 2 | 1 1 . Device . | . . . Storage 1 | 1 . . Processor 1 | . 1 . Hackware . | . . . Protection . | . . . Artifact . | . . . Weapon 5 | 2 1 2 Energy Gun 2 | 2 . . Energy Cannon . | . . . Ballistic Gun 1 | . . 1 Ballistic Cannon . | . . . Launcher 1 | . . 1 Special Weapon 1 | . 1 . Impact Weapon . | . . . Slashing Weapon . | . . . Piercing Weapon . | . . . Special Melee Weapon . | . . . Unidentified Prototypes . | . . . Parts Lost 4 | . . 4 Power 1 | . . 1 Propulsion . | . . . Utility 1 | . . 1 Weapon 2 | . . 2 Highest Loss Streak 4 | . . 4 To Critical Strikes . | . . . Average Slot Usage (%) 97 | . 97 97 Engine 13 | . 14 13 Treads 13 | . 14 13 Wheel 14 | . 14 14 Storage 14 | . 14 14 Processor 12 | . 12 13 Energy Gun 17 | . 23 14 Special Weapon 9 | . 4 13 Naked Turns . | . . . Heaviest Build 16 | 11 11 16 Greatest Support 10 | 10 10 10 Greatest Overweight (x) 1 | 1 1 1 Average Overweight (x) . | . . . Largest Inventory Capacity 8 | 8 8 8 Average Capacity 7 | 5 8 8 Most Carried 8 | 5 7 8 Average Carried 6 | 3 6 7 Final Capacity 8 | 8 8 8 Final Carried 7 | 5 7 6 Class Distribution -------------------- 100% | Mutant Dominant Class ---------------- Mutant | -10/Materials Mutant | -10/Mines Resources | -11 -10 -10 ----------- Run | Yrd Mat Min Matter Collected 265 | 214 51 . Remotely . | . . . Salvage Created 190 | 98 64 28 Parts 11 | 3 8 . Haulers Intercepted . | . . . Recyclers Shooed . | . . . Parts Field Recycled . | . . . Retrieved Matter . | . . . Parts Self-Destructed . | . . . Prevented . | . . . Kills | -11 -10 -10 ------- Run | Yrd Mat Min Combat Hostiles Destroyed 11 | . 3 8 Guns 3 | . 3 . AOE 8 | . . 8 Classes Destroyed 5 | 2 2 1 Tunneler 1 | 1 . . Recycler 1 | 1 . . Operator 1 | . 1 . Swarmer 3 | . 3 . Assembled 8 | . . 8 Best Kill Streak 8 | 2 2 8 Combat Bots Only 8 | . 2 8 Max Kills in Single Turn 3 | 1 1 3 Gunslinging . | . . . Exploded 3 | . . 3 Melee . | . . . Uniques/NPCs Destroyed . | . . . Combat | -11 -10 -10 -------- Run | Yrd Mat Min Hostile Shots Fired 75 | . 22 53 Missed 25 | . 7 18 Damage Taken 817 | . 119 698 Core 258 | . 26 232 Absorbed by Shields . | . . . Core Remaining (%) 100 | 100 . . Volleys Fired 29 | 5 17 7 Largest 2 | 2 2 2 Hottest 100 | 80 100 60 Shots Fired 37 | 10 18 9 Gun 27 | 10 13 4 Cannon . | . . . Launcher 5 | . . 5 Special 5 | . 5 . Kinetic 2 | . . 2 Thermal 24 | 5 17 2 Explosive 5 | . . 5 Electromagnetic 6 | 5 1 . Robot Hit Streak 3 | 2 2 3 Robot Miss Streak 4 | 3 4 1 Penetration Max . | . . . Secondary Targets . | . . . Shots Hit Robots 13 | 4 5 4 Core Hits 26 | 3 4 19 Critical Kills . | . . . Critical Parts Destroyed . | . . . Critical Strikes . | . . . Melee Attacks . | . . . Impact . | . . . Slashing . | . . . Piercing . | . . . Sneak Attacks . | . . . Combat Hostiles . | . . . Follow-up Attacks . | . . . Damage Inflicted 608 | 44 58 506 Guns 127 | 44 58 25 Cannons . | . . . Explosions 481 | . . 481 Melee . | . . . Ramming . | . . . Kinetic 15 | . . 15 Thermal 84 | 32 42 10 Explosive 481 | . . 481 Electromagnetic 28 | 12 16 . Impact . | . . . Slashing . | . . . Piercing . | . . . Highest Corruption 6 | . . 6 Average Corruption 6 | . . 6 Corruption Purged . | . . . Corruption Blocked . | . . . Overload Shots . | . . . Overflow Damage 28 | . . 28 Projectiles . | . . . Explosions 28 | . . 28 Melee . | . . . Knockbacks . | . . . Impact . | . . . Kinetic . | . . . Secondary . | . . . Self-Inflicted Damage 67 | . . 67 Shots 2 | . . 2 Rammed . | . . . Targets Rammed . | . . . Kicked . | . . . Crushed . | . . . Highest Temperature 54 | 54 40 35 Average Temperature 21 | 25 19 17 Received Heat Transfer 69 | . . 69 Siege Activations . | . . . Robots Corrupted . | . . . Combat Hostiles . | . . . Parts Fried . | . . . Impact Corruptions . | . . . Robots Melted . | . . . Combat Hostiles . | . . . Parts Melted 1 | . 1 . Heat Transferred 200 | 75 100 25 Parts Sabotaged . | . . . Parts Stolen . | . . . Parts Stripped . | . . . Power Chain Reactions . | . . . Alert | -11 -10 -10 ------- Run | Yrd Mat Min Peak Influence 160 | 10 160 109 Initial 62 | . 6 62 Average 53 | 3 53 64 Maximum Alert Level . | . . . Low Security (%) 100 | 100 100 100 Level 1 . | . . . Level 2 . | . . . Level 3 . | . . . Level 4 . | . . . Level 5 . | . . . High Security . | . . . Max Security . | . . . Squads Dispatched . | . . . Investigation . | . . . Extermination . | . . . Reinforcement . | . . . Assault . | . . . Garrison . | . . . Intercept . | . . . Searches Triggered . | . . . Construction Impeded . | . . . Haulers Reinforced . | . . . Active Scanning Responses . | . . . Cargo Convoy Interrupts . | . . . Stealth | -11 -10 -10 --------- Run | Yrd Mat Min Distress Signals . | . . . Communications Jammed . | . . . Distress Signals . | . . . Times Spotted 29 | . 6 23 Peak Tracking Total 20 | . 3 20 Tactical Retreats 1 | . 1 . Traps | -11 -10 -10 ------- Run | Yrd Mat Min Traps Triggered . | . . . Indirectly . | . . . Trap Hack Attempts . | . . . Triggered . | . . . Disarmed . | . . . Reprogrammed . | . . . Reused . | . . . Traps Extracted . | . . . Installed . | . . . Triggered . | . . . Machines | -11 -10 -10 ---------- Run | Yrd Mat Min Machines Disabled 1 | . . 1 Max in Single Turn 1 | . . 1 Machines Repaired . | . . . Machines Dismantled . | . . . Machines Sabotaged . | . . . Overloaded Fab Kills . | . . . Hacking | -11 -10 -10 --------- Run | Yrd Mat Min Machines Accessed 4 | . 3 1 Terminals 3 | . 3 . Fabricators . | . . . Repair Stations . | . . . Recycling Units . | . . . Scanalyzers . | . . . Garrison Access . | . . . Total Hacks 5 | . 4 1 Successful 4 | . 3 1 Failed 1 | . 1 . Catastrophic 1 | . 1 . Database Lockouts . | . . . Manual 3 | . 3 . Terminals 4 | . 4 . Fabricators . | . . . Repair Stations . | . . . Recycling Units . | . . . Scanalyzers . | . . . Garrison Access . | . . . Terminal Hacks 3 | . 2 1 Robot Analysis 1 | . 1 . Open Door 1 | . . 1 Branch Access Points 1 | . 1 . Fabricator Hacks . | . . . Repair Station Hacks . | . . . Recycling Unit Hacks . | . . . Scanalyzer . | . . . Garrison Access Hacks . | . . . Unauthorized Hacks 1 | . 1 . Terminals 1 | . 1 . Assimilate 1 | . 1 . Fabricators . | . . . Repair Stations . | . . . Recycling Units . | . . . Scanalyzers . | . . . Garrison Access . | . . . Data Cores Recovered 1 | . 1 . Used . | . . . Hacking Detections . | . . . Full Trace Events . | . . . Feedback Events . | . . . Feedback Blocked . | . . . Robot Schematics Acquired . | . . . Robots Built . | . . . Authchips . | . . . Time . | . . . Total Robot Build Rating . | . . . Part Schematics Acquired . | . . . Parts Built . | . . . Authchips . | . . . Time . | . . . Total Part Build Rating . | . . . Parts Repaired . | . . . Time . | . . . Parts Recycled . | . . . Recycled Matter . | . . . Retrieved Matter . | . . . Retrieved Components . | . . . Parts Scanalyzed . | . . . Part Schematics Acquired . | . . . Parts Damaged . | . . . Bothacking | -11 -10 -10 ------------ Run | Yrd Mat Min Used RIF Installer . | . . . Robots Hacked . | . . . Non-combat . | . . . Combat . | . . . Robot Hacks Applied . | . . . Relay Couplers Released . | . . . Fabnet Peak Effective % . | . . . Robots Rewired . | . . . Allies Hacked . | . . . Hacks Repelled . | . . . Allies | -11 -10 -10 -------- Run | Yrd Mat Min Total Allies . | . . . Largest Group . | . . . Highest-Rated Group . | . . . Highest-Rated Ally . | . . . Total Orders . | . . . Ally Attacks . | . . . Total Damage . | . . . Kills . | . . . Allies Corrupted . | . . . Allies Melted . | . . . Intel | -11 -10 -10 ------- Run | Yrd Mat Min Robot Analysis Total 1 | . 1 . Derelict Logs Recovered . | . . . Drone Launches . | . . . Drone Recoveries . | . . . Exploration | -11 -10 -10 ------------- Run | Yrd Mat Min Turns Passed 625 | 73 224 328 Spaces Moved 575 | 50 188 337 Core 6 | 6 . . Treads . | . . . Legs 2 | 2 . . Wheels 567 | 42 188 337 Hover . | . . . Flight . | . . . Fastest Speed 50 | 50 80 80 Average Speed 87 | 79 92 85 Slowest Speed 120 | 120 95 95 Overloaded Moves . | . . . Propulsion Burnouts . | . . . Robots Hopped . | . . . Cave-ins Triggered . | . . . Exploration Rate (%) 34 | 4 32 68 Regions Visited 2 Branch Regions 1 Pre-discovered Areas . | . . . Known Exits Taken 1 | . 1 . Unknown Exits Taken 1 | 1 . . Scrap Searched 1 | . . 1 Spaces Dug 5 | . 5 . Terrain Destroyed 35 | . 5 30 Melee . | . . . Projectile 5 | . 5 . AOE 30 | . . 30 Terrain Rammed . | . . . Walls Destroyed . | . . . Machines Disabled . | . . . Actions | -11 -10 -10 --------- Run | Yrd Mat Min Total 646 | 70 210 366 Wait 9 | . . 9 Move 573 | 49 187 337 Hop . | . . . Pick Up 13 | 7 3 3 Fast Attach 6 | 5 1 . Attach 4 | 2 . 2 Detach . | . . . Swap 7 | 1 1 5 Drop 5 | 1 1 3 Fire 29 | 5 17 7 Melee . | . . . Ram . | . . . Kick . | . . . Crush . | . . . Escape Stasis . | . . . Rewire . | . . . Trap . | . . . Miscellaneous . | . . . Route ------- -11/Scrapyard -10/Materials (discovered 2 exits: *Min x2) -10/Mines History --------- Turn | Location | Event 28 | -11/Scrapyard | Discovered new exit (range 15) 74 | -11/Scrapyard | Entered Materials 81 | -10/Materials | Identified exit to Mines 298 | -10/Materials | Entered Mines 306 | -10/Mines | Build established: Mutant 344 | -10/Mines | Found the Drone Emporium 349 | -10/Mines | Found Prototype Device 451 | -10/Mines | Joined a pair of Derelicts in attacking an 0b10 outpost 599 | -10/Mines | Assembled infested the area 621 | -10/Mines | Core integrity fell below 50% 621 | -10/Mines | Core integrity fell below 20% 626 | -10/Mines | Destroyed by as-94058 with Assembled Blade Last Messages --------------- 00610_ as-93914 destroyed. 00611_ The unstable cave ceiling collapses. 00612_ as-38981 destroyed. 00612_ Grenade Launcher destroyed. 00612_ Destroyed Grenade Launcher. 00612_ as-72061 destroyed. 00617_ as-68953 destroyed. 00618_ Lgt. Treads severed. 00619_ Lgt. Assault Rifle destroyed. 00619_ Targeting Computer destroyed. 00619_ System corrupted by crushing effect (+1). 00619_ System corrupted by crushing effect (+5). 00623_ U-05 Engineer lays Concrete. 00624_ as-25681 sneak attacks. 00624_ U-05 Engineer destroyed. 00625_ as-25681 destroyed. 00625_ as-66765 destroyed. 00625_ as-99170 destroyed. 00626_ The unstable cave ceiling collapses. 00626_ U-05 Engineer lays Concrete. Map ----- +----------------------------------------------------+ | ?????????????????????????????????## #??#"!] # | | ?????????????????????????????????# #??#! % / # | | ?????????????????????????????????# ##??#% / ## | | ?????????????????????????????????# #???#=|! # ## | | ????????????????????????????????## #???##![## # | | ????????????????????????# #????## #????#### | | ???????????????????????? ????# #??????# | | ???????????????????????? ???## ##?????# | | ???????????????????????# ???# ###???## | | ???????????????????????# #???# ##???## | | ???????????????????????# #??## #????# | | ???????????????????????# #?## """ ####### | | ???????????????????????# #?# """ #?#### | | ???????????????????????# #?# """ #????? | | ???????????????????????# #?# ### #????? | | ???????????????????????# #?#### ######??? ???? | | ??????????????????###??# ##???# ###?????????##??? | | ?????????? ??????## ### ##??# #???????????????? | | ?????????? ????# #### #???????????????? | | ?????????? #??# ## #???????????????? | | ?????????? d ?## ## ## ###???????????????? | | ????????? ######## ## #?????????????????? | | ????????? # ## #?????????????????? | | ?????????? # ####?????????????????? | | ?????????? ### a % #u #????????????????????? | | ??????# %=a@ #????????????????????? | | ??????# % % a !a #????????????????????? | | ?????? # # ####????????????????????? | | ?????????????# ????????????????????????? | | ?????????????#### ##????????????????????????? | | ????????????????## #?????????????????????????? | | ?????????????????## #??????????????????????????? | | ??????????????????####???????????????????????????? | | ?????????????????????????????????????????????????? | | ?????????????????????????????????????????????????? | | | | | | | | | | | | | | | | | | | | | | | | | | | | | | | +----------------------------------------------------+ Best States ------------- Heat Dissipation 25 Energy Generation 12 Energy Capacity 265 Matter Stores 265 Matter Capacity 300 Sight Range 16 Terrain Scan Density 10 Evasion (%) 44 Targeting Accuracy 5 Recoil Reduction 1 Item Schematics ----------------- None Robot Schematics ------------------ None Fabricated ------------ Nothing Alien Tech Used ----------------- None Achievements -------------- Hunted Challenges ------------ None Game ------ Seed SkeletonActiveNanoactuators Manual? 0 Play Time 00:16:03 Cumulative 10.2 hours Start 2024.07.20 @ 21:57:59 End 2024.07.20 @ 22:17:27 Sessions 1 Manual Loads 0 Difficulty Rogue Special Mode None Game No. 11 Rogue 11 Adventurer 0 Explorer 0 Win Type - Total 0 Types 0/0/0/0/0/0/0/0/0 Lore% 16 Gallery% 16 Achievement% 18 Wizard Run 0 Options --------- Layout 0 ASCII 0 Keyboard 0 Movement Mouse Keybinds 0 Fullscreen 2 Font 24/Smallcaps Map View 76x50 Zoom Use 0% Tactical HUD 1 Map Filters NONE Filters NONE Steam 1 RUN: 235fb3d6-c498-4e6a-b6d9-eff2dd2f70c8